Cogmind - Beta 15 *** ADVENTURER MODE // 2025.08.01 @ 08:46:57 Player: LegoMDS Result: Destroyed by Y-45 Defender with Heavy Assault Rifle Performance ------------- Evolutions (0) 0 Regions Visited (2) 400 Robots Destroyed (18) 90 Value Destroyed (644) 644 Prototype IDs (7) 140 Alien Tech Used (0) 0 Bonus (0) 0 TOTAL SCORE: 1274 Bonus ------- None Cogmind --------- Core Integrity 0/250 Matter 280/300 Energy 100/100 System Corruption 0% Temperature Cool (9) Movement Core (250) Ox4 Location -10/Mines Parts ------- > --- POWER (1) -------- (None) > --- PROPULSION (2) --- (None) > --- UTILITY (2) ------ Medium Storage Unit > --- WEAPON (2) ------- Particle Gun > --- INVENTORY (10) --- Ion Engine Improved Heat Sink Improved Heat Sink Targeting Computer Utility Shielding Rocket Launcher Mini Grenade Launcher Datajack Mining Laser Peak State ------------ > --- POWER ------------ Light Nuclear Core > --- PROPULSION ------- Light Treads Light Treads > --- UTILITY ---------- Medium Storage Unit Light Armor Plating > --- WEAPON ----------- Particle Gun Grenade Launcher > --- INVENTORY -------- Ion Engine Improved Heat Sink Improved Heat Sink Targeting Computer Utility Shielding Datajack Mining Laser [Rating: 11] Favorites ----------- Power Ion Engine Engine Ion Engine Power Core Light Nuclear Core Propulsion Light Treads Treads Light Treads Utility Light Armor Plating Storage Small Storage Unit Protection Light Armor Plating Weapon Assault Rifle Energy Gun Particle Gun Ballistic Gun Assault Rifle Launcher Grenade Launcher Build | -11 -10 -10 ------- Run | Yrd Mat Min Slots Evolved . | . . . Power . | . . . Propulsion . | . . . Utility . | . . . Weapon . | . . . Parts Attached 15 | 6 6 3 Power 4 | 1 2 1 Engine 3 | 1 2 . Core 1 | . . 1 Reactor . | . . . Propulsion 2 | 2 . . Treads 2 | 2 . . Leg . | . . . Wheel . | . . . Hover . | . . . Flight . | . . . Utility 4 | 1 2 1 Device . | . . . Storage 2 | 1 1 . Processor . | . . . Hackware . | . . . Protection 2 | . 1 1 Artifact . | . . . Weapon 5 | 2 2 1 Energy Gun 1 | . 1 . Energy Cannon . | . . . Ballistic Gun 3 | 2 1 . Ballistic Cannon . | . . . Launcher 1 | . . 1 Special Weapon . | . . . Impact Weapon . | . . . Slashing Weapon . | . . . Piercing Weapon . | . . . Special Melee Weapon . | . . . Unidentified Prototypes . | . . . Parts Lost 9 | . 1 8 Power 3 | . 1 2 Propulsion 2 | . . 2 Utility 2 | . . 2 Weapon 2 | . . 2 Highest Loss Streak 8 | . 1 8 To Critical Strikes . | . . . Average Backups 7 | 1 6 8 Power . | . . 1 Propulsion . | . . . Utility 3 | . 2 4 Weapon 2 | . 2 2 Tool/Special . | . . . Unused Backups 10 | . 1 9 Power 2 | . 1 1 Propulsion . | . . . Utility 4 | . . 4 Weapon 3 | . . 3 Tool/Special 1 | . . 1 Average Slot Usage (%) 77 | . 98 42 Engine 9 | . 13 2 Treads 19 | . 27 5 Storage 14 | . 14 14 Protection 9 | . 13 2 Energy Gun 10 | . 8 13 Ballistic Gun 12 | . 19 2 Peak Build Rating 11 | 6 9 11 Average Rating 6 | 3 7 4 On Entrance 5 | . 6 9 Naked Turns . | . . . Heaviest Build 24 | 14 23 24 Greatest Support 40 | 40 40 40 Greatest Overweight (x) 4 | . . 4 Average Overweight (x) 1 | . . 3 Largest Inventory Capacity 10 | 8 10 10 Average Capacity 8 | 6 8 10 Most Carried 10 | 5 10 10 Average Carried 7 | 2 6 8 Final Capacity 10 | 8 10 10 Final Carried 10 | 2 10 9 Class Distribution -------------------- 100% | Mutant Dominant Class ---------------- Mutant | -10/Materials Mutant | -10/Mines Resources | -11 -10 -10 ----------- Run | Yrd Mat Min Matter Collected 718 | 260 363 95 Remotely . | . . . Salvage Created 698 | . 616 82 Parts 38 | . 36 2 Haulers Intercepted 1 | . 1 . Recyclers Shooed . | . . . Parts Field Recycled . | . . . Retrieved Matter . | . . . Parts Self-Destructed . | . . . Prevented . | . . . Kills | -11 -10 -10 ------- Run | Yrd Mat Min Combat Hostiles Destroyed 24 | . 13 11 Guns 15 | . 13 2 AOE 9 | . . 9 Classes Destroyed 5 | . 3 2 Hauler 1 | . 1 . Watcher 2 | . 2 . Grunt 13 | . 13 . Demolisher 2 | . . 2 Assembled 9 | . . 9 Best Kill Streak 11 | . 3 11 Combat Bots Only 11 | . 3 11 Max Kills in Single Turn 2 | . 1 2 Gunslinging . | . . . Exploded 2 | . . 2 Melee . | . . . Uniques/NPCs Destroyed . | . . . Combat | -11 -10 -10 -------- Run | Yrd Mat Min Hostile Shots Fired 162 | . 97 65 Missed 55 | . 33 22 Hits 107 | . 64 43 Melee 6 | . . 6 Projectile 101 | . 64 37 AOE 9 | . . 9 Critical Strikes 2 | . 2 . Damage Taken 1433 | . 664 769 Core 252 | . 108 144 Absorbed by Shields . | . . . Ignored by Resistances 411 | . 199 212 Regen/Repaired (Parts) 180 | . 180 . Core Remaining (%) 100 | 100 . . Volleys Fired 76 | . 64 12 Largest 2 | . 2 2 Hottest 95 | . 85 95 Shots Fired 145 | . 128 17 Gun 135 | . 128 7 Cannon . | . . . Launcher 10 | . . 10 Special . | . . . Kinetic 101 | . 98 3 Thermal 34 | . 30 4 Explosive 10 | . . 10 Electromagnetic . | . . . Robot Hit Streak 16 | . 16 12 Robot Miss Streak 4 | . 4 1 Penetration Max . | . . . Secondary Targets 5 | . 5 . Max Gunslinging Chain 1 | . 1 . Shots Hit Robots 109 | . 95 14 Core Hits 55 | . 30 25 Critical Kills 1 | . 1 . Critical Parts Destroyed 3 | . 3 . Critical Strikes 4 | . 4 . Destroy 4 | . 4 . Melee Attacks . | . . . Impact . | . . . Slashing . | . . . Piercing . | . . . Sneak Attacks . | . . . Combat Hostiles . | . . . Follow-up Attacks . | . . . Damage Inflicted 1844 | . 1256 588 Guns 1354 | . 1256 98 Cannons . | . . . Explosions 490 | . . 490 Melee . | . . . Ramming . | . . . Kinetic 912 | . 877 35 Thermal 442 | . 379 63 Explosive 490 | . . 490 Electromagnetic . | . . . Impact . | . . . Slashing . | . . . Piercing . | . . . Highest Corruption . | . . . Average Corruption . | . . . Corruption Purged . | . . . Corruption Blocked . | . . . Overload Shots . | . . . Overflow Damage 1 | . . 1 Projectiles . | . . . Explosions 1 | . . 1 Melee . | . . . Knockbacks . | . . . Impact . | . . . Kinetic . | . . . Secondary . | . . . Self-Inflicted Damage 22 | . . 22 Shots 1 | . . 1 Rammed . | . . . Targets Rammed . | . . . Kicked . | . . . Crushed . | . . . Highest Temperature 261 | . 261 104 Average Temperature 68 | . 69 57 Received Heat Transfer 548 | . 519 29 Siege Activations . | . . . Martial Activations . | . . . Shielding Activations . | . . . Robots Disrupted . | . . . Combat Hostiles . | . . . Robots Corrupted . | . . . Combat Hostiles . | . . . Parts Fried . | . . . Impact Corruptions . | . . . Robots Melted . | . . . Combat Hostiles . | . . . Parts Melted . | . . . Heat Transferred 1036 | . 888 148 Parts Sabotaged . | . . . Parts Stolen . | . . . Parts Stripped . | . . . Power Chain Reactions . | . . . Alert | -11 -10 -10 ------- Run | Yrd Mat Min Maximum Alert Level . | . . . Low Security (%) 100 | 100 100 100 Level 1 . | . . . Level 2 . | . . . Level 3 . | . . . Level 4 . | . . . Level 5 . | . . . High Security . | . . . Max Security . | . . . Peak Influence 90 | . 90 30 Initial 14 | . . 14 Average 17 | . 27 1 Influence Increases 561 | . 487 74 Destroy 0b10 Robot/C 300 | . 260 40 Destroy 0b10 Robot/NC 15 | . 15 . Destroy Leader 66 | . 56 10 Trap Triggered on 0b10 10 | . 10 . Successful Hack 62 | . 62 . Disable Machine 9 | . 9 . Destroy Structure 24 | . . 24 Lose Combat Pursuer 75 | . 75 . Influence Decreases 561 | . 443 118 Entered New Map 30 | . . 30 Time Decay 487 | . 433 54 Lost Part 44 | . 10 34 Squads Dispatched 4 | . 4 . Investigation 4 | . 4 . Extermination . | . . . Reinforcement . | . . . Assault . | . . . Garrison . | . . . Intercept . | . . . Searches Triggered . | . . . Construction Impeded . | . . . Haulers Reinforced . | . . . Active Scanning Responses . | . . . Cargo Convoy Interrupts . | . . . Stealth | -11 -10 -10 --------- Run | Yrd Mat Min Distress Signals . | . . . Communications Jammed . | . . . Distress Signals . | . . . Times Spotted 42 | . 20 22 Peak Tracking Total 16 | . 3 16 Tactical Retreats 5 | . 4 1 Traps | -11 -10 -10 ------- Run | Yrd Mat Min Traps Triggered 2 | . 2 . Indirectly . | . . . Trap Hack Attempts . | . . . Triggered . | . . . Disarmed . | . . . Reprogrammed 13 | . 13 . Reused 1 | . 1 . Traps Extracted . | . . . Installed . | . . . Triggered 1 | . 1 . Machines | -11 -10 -10 ---------- Run | Yrd Mat Min Machines Disabled 1 | . 1 . Max in Single Turn 1 | . 1 . Machines Repaired . | . . . Machines Dismantled . | . . . Machines Sabotaged . | . . . Overloaded Fab Kills . | . . . Hacking | -11 -10 -10 --------- Run | Yrd Mat Min Machines Accessed 9 | . 9 . Terminals 8 | . 8 . Fabricators . | . . . Repair Stations 1 | . 1 . Recycling Units . | . . . Scanalyzers . | . . . Garrison Access . | . . . Total Hacks 28 | . 28 . Successful 19 | . 19 . Failed 9 | . 9 . Catastrophic . | . . . Database Lockouts . | . . . Manual . | . . . Terminals 23 | . 23 . Fabricators . | . . . Repair Stations 5 | . 5 . Recycling Units . | . . . Scanalyzers . | . . . Garrison Access . | . . . Terminal Hacks 15 | . 15 . Prototype ID Bank 6 | . 6 . Branch Access Points 1 | . 1 . Locate Traps 1 | . 1 . Reprogram Traps 4 | . 4 . Registered Components 1 | . 1 . Zone Layout 2 | . 2 . Fabricator Hacks . | . . . Repair Station Hacks 4 | . 4 . Scan Component 2 | . 2 . Repair 2 | . 2 . Recycling Unit Hacks . | . . . Scanalyzer . | . . . Garrison Access Hacks . | . . . Unauthorized Hacks . | . . . Terminals . | . . . Fabricators . | . . . Repair Stations . | . . . Recycling Units . | . . . Scanalyzers . | . . . Garrison Access . | . . . Data Cores Recovered . | . . . Used . | . . . Hacking Detections 7 | . 7 . Full Trace Events 1 | . 1 . Feedback Events . | . . . Feedback Blocked . | . . . Robot Schematics Acquired . | . . . Robots Built . | . . . Authchips . | . . . Time . | . . . Total Robot Build Rating . | . . . Part Schematics Acquired . | . . . Parts Built . | . . . Authchips . | . . . Time . | . . . Total Part Build Rating . | . . . Parts Repaired 2 | . 2 . Time 52 | . 52 . Parts Recycled . | . . . Recycled Matter . | . . . Retrieved Matter . | . . . Retrieved Components . | . . . Parts Scanalyzed . | . . . Part Schematics Acquired . | . . . Parts Damaged . | . . . Bothacking | -11 -10 -10 ------------ Run | Yrd Mat Min Used RIF Installer . | . . . Robots Hacked . | . . . Non-combat . | . . . Combat . | . . . Robot Hacks Applied . | . . . Relay Couplers Released . | . . . Fabnet Peak Effective % . | . . . Robots Rewired . | . . . Allies Hacked . | . . . Hacks Repelled . | . . . Allies | -11 -10 -10 -------- Run | Yrd Mat Min Total Allies . | . . . Largest Group . | . . . Highest-Rated Group . | . . . Highest-Rated Ally . | . . . Total Orders . | . . . Ally Attacks . | . . . Total Damage . | . . . Kills . | . . . Allies Corrupted . | . . . Allies Melted . | . . . Intel | -11 -10 -10 ------- Run | Yrd Mat Min Active Infowar (turns) . | . . . Robot Analysis Total . | . . . Derelict Logs Recovered . | . . . Drone Launches . | . . . Drone Recoveries . | . . . Exploration | -11 -10 -10 ------------- Run | Yrd Mat Min Turns Passed 1808 | 47 1092 669 Spaces Moved 819 | 32 514 273 Core 224 | 15 . 209 Treads 595 | 17 514 64 Legs . | . . . Wheels . | . . . Hover . | . . . Flight . | . . . Fastest Speed 50 | 50 160 160 Average Speed 180 | 108 160 228 Slowest Speed 250 | 160 160 250 Overloaded Moves . | . . . Propulsion Burnouts . | . . . Robots Hopped . | . . . Potential Cave-ins . | . . . Cave-ins Triggered . | . . . Exploration Rate (%) 54 | 3 91 68 Regions Visited 2 Branch Regions 1 Pre-discovered Areas . | . . . Known Exits Taken 1 | . 1 . Unknown Exits Taken 1 | 1 . . Scrap Searched 1 | . . 1 Spaces Dug . | . . . Terrain Destroyed 36 | . . 36 Melee . | . . . Projectile . | . . . AOE 36 | . . 36 Terrain Rammed . | . . . Walls Destroyed . | . . . Machines Disabled . | . . . Actions | -11 -10 -10 --------- Run | Yrd Mat Min Total 1002 | 44 657 301 Wait 61 | . 51 10 Move 817 | 31 513 273 Hop . | . . . Pick Up 25 | 7 16 2 Fast Attach 1 | 1 . . Attach 12 | 5 4 3 Detach . | . . . Swap 5 | . 4 1 Drop 5 | . 5 . Fire 76 | . 64 12 Melee . | . . . Ram . | . . . Kick . | . . . Crush . | . . . Escape Stasis . | . . . Rewire . | . . . Trap . | . . . Miscellaneous . | . . . Route ------- -11/Scrapyard -10/Materials (discovered 5 exits: [*Mat x3] / *Min x2) -10/Mines History --------- Turn | Location | Event 6 | -11/Scrapyard | Discovered new exit (range 15) 48 | -11/Scrapyard | Entered Materials 256 | -10/Materials | Discovered new exit (range 15) 314 | -10/Materials | Build established: Mutant 391 | -10/Materials | Discovered new exit (range 9) 403 | -10/Materials | Identified exit to Mines 552 | -10/Materials | Discovered new exit (range 14) 865 | -10/Materials | Repaired Lgt. Treads 892 | -10/Materials | Repaired Lgt. Armor Plating 959 | -10/Materials | Discovered new exit (range 12) 1140 | -10/Materials | Entered Mines 1225 | -10/Mines | Assembled infested the area 1242 | -10/Mines | Core integrity fell below 50% 1268 | -10/Mines | Core integrity fell below 20% 1295 | -10/Mines | Destroyed 11 combat bots 1303 | -10/Mines | Lost 8 parts (2p2n2u2w) 1619 | -10/Mines | Received a Rocket Launcher from a helpful Derelict 1809 | -10/Mines | Destroyed by Y-45 Defender with Heavy Assault Rifle Last Messages --------------- A derelict emerges from the shadows. E1-PHX(g): "Some of my friends down here think you need a mining laser when you travel the depths." E1-PHX(g): "You know what I say? NO!" E1-PHX(g): "Everyone knows a good old rocket launcher goes a long way." E1-PHX(g): "Need to get rid of a swarm? Done. Need a big hole in the wall? Done." E1-PHX(g): "Need a small hole in the wall? Leave that to the mining laser wimps, I say!" E1-PHX(g): "Would you like a rocket launcher? I know I would if I were you, so I'm going to lend you mine." E1-PHX(g) slips back into the shadows. Acquired Rocket Launcher. Searching scrap... Found Beam Cannon. Found 70 Matter. Acquired 70 matter. Map ----- +----------------------------------------------------+ | | | | | | | | | | | | | | | | | | | | | | | | | | | | | | | | | | | | | | | ????????????????????????####?????????????? | | ???????????????????????#"YY"##???????????? | | ???????????????????????[! !!#???????????? | | ????????????????????????[ !!#???????????? | | ????????????????????????$ ###??????????? | | ?????????????????####?###//## ##?????????? | | ?????????? ????# ## @ ##????????? | | ????????? ### # ##???????? | | ????????? ##??????? | | ????????? ####???? | | ????????? ## #???? | | ?????????? ??## #??? | | ?????????? ?????# ##### #??? | | ???????????? ???##### ##????# ##??? | | ?????????????????# ] #?????? #???? | | ?????????????????# #??????? ##???? | | ?????????????????# #### #???????###????? | | #????????????????# #??# #?????????????? | | ##???????????????# #??# #?????????????? | | ##????????????### #??# #????????????? | | ##???????????# #?? #???????????? | | ##??????????# ###?? #???????????? | | ##?????????# #????# ##???????????? | | ########### #????#### #????????????? | | #???????? #????????????? | | #???????? #????????????? | | ### #########???????? ????????????? | | ##?# #????????????????? ????????????? | | ##??# #??????????????????? ???????????? | | ##??# #???????????????????????????????? | | #### #???????????????????????????????? | +----------------------------------------------------+ Best States ------------- Heat Dissipation 25 Energy Generation 14 Energy Capacity 250 Matter Stores 300 Matter Capacity 300 Sight Range 16 Terrain Scan Density 10 Armor Coverage 150 Resistance: KI 20 Resistance: TH 20 Resistance: EX 20 Resistance: EM 20 Resistance: I 20 Resistance: S 20 Resistance: P 20 Evasion (%) 50 Recoil Reduction 2 Offensive Hacking 10 Item Schematics ----------------- None Robot Schematics ------------------ None Fabricated ------------ Nothing Repaired ---------- Lgt. Treads | 25% | -10/Materials Lgt. Armor Plating | 15% | -10/Materials Alien Tech Used ----------------- None Achievements -------------- None Challenges ------------ None Game ------ Seed ThunderDeuteriumScrapsphere Manual? 0 Play Time 00:10:51 Cumulative 92.2 hours Start 2025.08.01 @ 08:36:45 End 2025.08.01 @ 08:46:57 Sessions 1 Manual Loads 0 Difficulty Adventurer Special Mode None Game No. 130 Rogue 13 Adventurer 117 Explorer 0 Win Type - Total 0 Types 0/0/0/0/0/0/0/0/0/0 Lore% 68 Gallery% 60 Achievement% 46 Wizard Run 0 Options --------- Layout 1 ASCII 0 Keyboard 0 Movement Mouse Keybinds 0 Fullscreen 1 Font 32/SmallcapsGlow Map View 50x35 Zoom Use 0% Tactical HUD 0 Map Filters NONE Filters NONE Steam 1 RUN: f76f074e-3ae8-4ff1-bc7a-a27b188f913f